Workbook

Sheet Template
A1: Company Name: | F1: SEC.gov | Company Search Page
A2: Valuation Date: | B2: 2020-12-29
A3: Valuation Period: | B3: 2020-09-25
A5: Current Price: | B5: =_FV(B1,"Price") -> 54.14
A6: Market Cap: | B6: =_FV(B1,"Market cap",TRUE) -> 232749100000
A7: Shares Outstanding: | B7: =_FV(B1,"Shares outstanding",TRUE) -> 4297435000
A8: Diluted Shares OS: | B8: 4311000000
A10: Cash | B10: 18732000000
A11: Accounts Receivable | B11: 3827000000
A12: Inventory | B12: 3264000000
A13: Total Liabilities | B13: =97184000000-20316000000 -> 76868000000
A14: Net Income | B14: =6920/9*12*1000000 -> 9226666667
A18: Ratios
A19: P/E | B19: =+B6/B14 -> 25.22569725
A21: Net-Net Valuation
A22: Cash | B22: =+B10 -> 18732000000
A23: + AR (75%) | B23: =+B11*0.75 -> 2870250000
A24: + Inventory (50%) | B24: =+B12*0.5 -> 1632000000
A25: - Total Liabilities | B25: =-B13 -> -76868000000
A26: Net-Net Value | B26: =SUM(B22:B25) -> -53633750000

Sheet Kohls
A1: Company Name: | F1: SEC.gov | Company Search Page
A2: Valuation Date: | B2: 2020-12-29
A3: Valuation Period: | B3: 2020-10-31
A5: Current Price: | B5: =_FV(B1,"Price") -> 39.71
A6: Market Cap: | B6: =_FV(B1,"Market cap",TRUE) -> 6326591000
A7: Shares Outstanding: | B7: =_FV(B1,"Shares outstanding",TRUE) -> 157652400
A8: Diluted Shares OS: | B8: 4311000000
A10: Cash | B10: 1939000000
A11: Accounts Receivable | B11: 0
A12: Inventory | B12: 3607000000
A13: Total Liabilities | B13: =15444000000-4838000000 -> 10606000000
A14: Net Income | B14: =6920/9*12*1000000 -> 9226666667
A18: Ratios
A19: P/E | B19: =+B6/B14 -> 0.6856854408
A21: Net-Net Valuation
A22: Cash | B22: =+B10 -> 1939000000
A23: + AR (75%) | B23: =+B11*0.75 -> 0
A24: + Inventory (50%) | B24: =+B12*0.5 -> 1803500000
A25: - Total Liabilities | B25: =-B13 -> -10606000000
A26: Net-Net Value | B26: =SUM(B22:B25) -> -6863500000
